Cogmind - Beta 17.1 @@@ ROGUE MODE // 2026.08.18 @ 14:58:22 Player: McSaucyNugget Result: Destroyed by D-53 Grenadier with Mini Grenade Launcher Performance ------------- Evolutions (0) 0 Regions Visited (2) 400 Robots Destroyed (27) 135 Value Destroyed (429) 429 Prototype IDs (4) 80 Alien Tech Used (0) 0 Bonus (5067) 5067 TOTAL SCORE: 6111 Bonus ------- Follower Combat Kills 67 Prayed to X0-1V1 5000 Cogmind --------- Core Integrity 0/100 Matter 139/150 Energy 265/265 System Corruption 4% Temperature Warm (102) Movement Rolling (140) Ox3 Location -10/Mines Parts ------- > --- POWER (1) -------- Reinforced Ion Engine (fused) > --- PROPULSION (3) --- Compact Wheel (fused) Armored Wheel (fused) > --- UTILITY (2) ------ Huge Storage Unit Self-contained Transmogrifier > --- WEAPON (2) ------- Advanced Beam Cannon Battle Cannon (fused) > --- INVENTORY (25) --- Light Ion Engine Light Ion Engine Light Treads Light Treads Heat Sink High-capacity Matter Pod (200) Light Armor Plating Light Armor Plating Light Armor Plating X0-1V1's Piety Tracker Advanced Beam Cannon Advanced Beam Cannon Light Assault Rifle Grenade Launcher Makeshift Spear Peak State ------------ > --- POWER ------------ Reinforced Ion Engine > --- PROPULSION ------- Wheel Compact Wheel Armored Wheel > --- UTILITY ---------- Huge Storage Unit Self-contained Transmogrifier > --- WEAPON ----------- Advanced Beam Cannon Battle Cannon > --- INVENTORY -------- Light Ion Engine Light Ion Engine Light Treads Light Treads Heat Sink High-capacity Matter Pod Light Armor Plating Light Armor Plating Light Armor Plating X0-1V1's Piety Tracker Advanced Beam Cannon Advanced Beam Cannon Light Assault Rifle Grenade Launcher Makeshift Spear [Rating: 24] Favorites ----------- Power Light Ion Engine Engine Light Ion Engine Propulsion Light Treads Treads Light Treads Wheel Compact Wheel Hover Unit Hover Unit Utility Improved Heat Sink Device Improved Heat Sink Storage Huge Storage Unit Weapon Light Assault Rifle Energy Gun Medium Laser Energy Cannon Advanced Beam Cannon Ballistic Gun Light Assault Rifle Ballistic Cannon Battle Cannon Launcher Grenade Launcher Slashing Weapon Mining Claw Build | -11 -10 -10 ------- Run | Yrd Mat Min Slots Evolved . | . . . Power . | . . . Propulsion . | . . . Utility . | . . . Weapon . | . . . Parts Attached 18 | 5 12 1 Power 1 | . 1 . Engine 1 | . 1 . Core . | . . . Reactor . | . . . Propulsion 7 | 2 5 . Treads 3 | 2 1 . Leg . | . . . Wheel 4 | . 4 . Hover . | . . . Flight . | . . . Utility 5 | 1 4 . Device 2 | . 2 . Storage 3 | 1 2 . Processor . | . . . Hackware . | . . . Protection . | . . . Artifact . | . . . Weapon 5 | 2 2 1 Energy Gun 1 | 1 . . Energy Cannon 1 | . 1 . Ballistic Gun 1 | 1 . . Ballistic Cannon . | . . . Launcher 1 | . . 1 Special Weapon . | . . . Impact Weapon . | . . . Slashing Weapon 1 | . 1 . Piercing Weapon . | . . . Special Melee Weapon . | . . . Unidentified Prototypes 1 | . 1 . Parts Lost 1 | . . 1 Power . | . . . Propulsion 1 | . . 1 Utility . | . . . Weapon . | . . . Highest Loss Streak 1 | . . 1 To Critical Strikes . | . . . Average Backups 13 | 3 13 15 Power 2 | 1 2 2 Propulsion 3 | 1 3 2 Utility 4 | . 4 6 Weapon 4 | . 4 5 Tool/Special . | . . . Unused Backups 14 | . 3 11 Power 4 | . 2 2 Propulsion . | . . . Utility 5 | . . 5 Weapon 5 | . 1 4 Tool/Special . | . . . Average Slot Usage (%) 97 | . 97 99 Engine 12 | . 12 12 Treads 19 | . 21 . Wheel 9 | . 6 36 Device 13 | . 13 12 Storage 13 | . 13 12 Energy Cannon 10 | . 11 6 Ballistic Gun 13 | . 14 5 Ballistic Cannon 1 | . . 11 Slashing Weapon 1 | . 1 . Peak Build Rating 24 | 5 20 24 Average Rating 12 | 4 12 22 On Entrance 8 | . 5 20 Avg Prop Armor Cover (%) . | . . . Naked Turns . | . . . Heaviest Build 97 | 8 89 97 Greatest Support 48 | 40 48 44 Greatest Overweight (x) 2 | . 2 2 Average Overweight (x) 1 | . 1 2 Largest Inventory Capacity 25 | 8 25 25 Average Capacity 21 | 7 21 25 Most Carried 17 | 6 17 16 Average Carried 13 | 3 13 15 Final Capacity 25 | 8 25 25 Final Carried 15 | 6 15 15 Transmogrified Parts 9 | . 5 4 Integrity Recovered 44 | . 17 27 Class Distribution -------------------- 100% | Mutant Dominant Class ---------------- Mutant | -10/Materials Mutant | -10/Mines Resources | -11 -10 -10 ----------- Run | Yrd Mat Min Matter Collected 723 | 238 445 40 Remotely . | . . . Salvage Created 882 | 108 630 144 Parts 51 | 8 33 10 Haulers Intercepted 2 | . 2 . Recyclers Shooed 4 | 1 3 . Parts Field Recycled . | . . . Retrieved Matter . | . . . Parts Self-Destructed . | . . . Prevented . | . . . Parts Restored . | . . . Kills | -11 -10 -10 ------- Run | Yrd Mat Min Combat Hostiles Destroyed 15 | . 11 4 Guns 3 | . 3 . Cannons 9 | . 7 2 AOE 2 | . . 2 Classes Destroyed 6 | 2 4 . Tunneler 4 | 2 2 . Hauler 2 | . 2 . Recycler 3 | 1 1 1 Watcher 3 | . 3 . Swarmer 8 | . 6 2 Grunt 7 | . 5 2 Best Kill Streak 6 | 3 6 2 Combat Bots Only 3 | . 3 2 Max Kills in Single Turn 2 | 1 1 2 Gunslinging . | . . . Exploded 2 | . . 2 Melee . | . . . Uniques/NPCs Destroyed . | . . . Combat | -11 -10 -10 -------- Run | Yrd Mat Min Hostile Shots Fired 48 | . 37 11 Missed 13 | . 10 3 Hits 35 | . 27 8 Projectile 35 | . 27 8 AOE 7 | . . 7 Damage Taken 529 | . 281 248 Core 102 | . 62 40 Absorbed by Shields . | . . . Core Remaining (%) 100 | 100 . . Volleys Fired 76 | 12 56 8 Largest 2 | 2 2 2 Hottest 101 | 70 88 101 Shots Fired 153 | 24 114 15 Gun 85 | 24 61 . Cannon 66 | . 53 13 Launcher 2 | . . 2 Special . | . . . Kinetic 77 | 12 59 6 Thermal 74 | 12 55 7 Explosive 2 | . . 2 Electromagnetic . | . . . Robot Hit Streak 7 | 3 7 3 Robot Miss Streak 4 | 2 3 4 Penetration Max . | . . . Secondary Targets . | . . . Shots Hit Robots 82 | 12 63 7 Core Hits 39 | 5 31 3 Critical Kills 1 | . 1 . Critical Parts Destroyed . | . . . Critical Strikes 3 | 2 1 . Burn 2 | 2 . . Meltdown 1 | . 1 . Melee Attacks 17 | . 17 . Impact . | . . . Slashing 17 | . 17 . Piercing . | . . . Sneak Attacks 1 | . 1 . Combat Hostiles . | . . . Follow-up Attacks . | . . . Damage Inflicted 1334 | 129 992 213 Guns 385 | 129 256 . Cannons 809 | . 674 135 Explosions 78 | . . 78 Melee 62 | . 62 . Ramming . | . . . Kinetic 381 | 43 244 94 Thermal 813 | 86 686 41 Explosive 78 | . . 78 Electromagnetic . | . . . Impact . | . . . Slashing 62 | . 62 . Piercing . | . . . Highest Corruption 4 | . 4 4 Average Corruption 2 | . 2 4 Corruption Purged . | . . . Corruption Blocked . | . . . Effects 40 | . 33 7 Message Errors 12 | . 9 3 Matter Fused 12 | . 10 2 Heat Flow Errors 6 | . 6 . Energy Discharges 1 | . 1 . Data Loss (minor) 6 | . 5 1 Misfires 3 | . 2 1 Overload Shots . | . . . Overflow Damage 52 | . 24 28 Projectiles 18 | . 2 16 Explosions 12 | . . 12 Melee 22 | . 22 . Knockbacks 3 | . . 3 Impact . | . . . Kinetic 3 | . . 3 Secondary . | . . . Self-Inflicted Damage . | . . . Shots . | . . . Rammed . | . . . Targets Rammed . | . . . Kicked . | . . . Crushed . | . . . Highest Temperature 192 | 40 192 112 Average Temperature 32 | 17 31 52 Received Heat Transfer 93 | . 87 6 Siege Activations . | . . . Martial Activations . | . . . Shielding Activations . | . . . Robots Disrupted . | . . . Combat Hostiles . | . . . Robots Corrupted . | . . . Combat Hostiles . | . . . Parts Fried . | . . . Impact Corruptions . | . . . Robots Melted 1 | . 1 . Combat Hostiles 1 | . 1 . Parts Melted 2 | 1 1 . Heat Transferred 1739 | 407 1258 74 Parts Sabotaged . | . . . Parts Stolen . | . . . Parts Stripped . | . . . Power Chain Reactions . | . . . Alert | -11 -10 -10 ------- Run | Yrd Mat Min Maximum Alert Level . | . . . Low Security (%) 100 | 100 100 100 Level 1 . | . . . Level 2 . | . . . Level 3 . | . . . Level 4 . | . . . Level 5 . | . . . High Security . | . . . Max Security . | . . . Peak Influence 166 | 10 166 156 Initial . | . . . Average 23 | 1 20 63 Influence Increases 605 | 15 376 214 Destroy 0b10 Robot/C 360 | . 220 140 Destroy 0b10 Robot/NC 60 | 15 40 5 Destroy Leader 90 | . 70 20 Allied During Kill 35 | . . 35 Successful Hack 13 | . 13 . Select Force Hacks 30 | . 30 . Destroy Structure 17 | . 3 14 Influence Decreases 521 | 15 376 130 Time Decay 471 | 15 376 80 Lost Part 10 | . . 10 Lost Ally 40 | . . 40 Squads Dispatched 4 | . 3 1 Investigation 1 | . 1 . Extermination . | . . . Reinforcement 2 | . 2 . Assault 1 | . . 1 Garrison . | . . . Intercept . | . . . Searches Triggered . | . . . Construction Impeded . | . . . Haulers Reinforced . | . . . Active Scanning Responses . | . . . Cargo Convoy Interrupts . | . . . Stealth | -11 -10 -10 --------- Run | Yrd Mat Min Distress Signals 3 | . 3 . Communications Jammed . | . . . Distress Signals . | . . . Times Spotted 33 | . 20 13 Peak Tracking Total 5 | . 4 5 Tactical Retreats 1 | . . 1 Traps | -11 -10 -10 ------- Run | Yrd Mat Min Traps Triggered 2 | . 2 . Indirectly . | . . . Trap Hack Attempts . | . . . Triggered . | . . . Disarmed . | . . . Reprogrammed . | . . . Reused . | . . . Traps Extracted . | . . . Installed . | . . . Triggered . | . . . Machines | -11 -10 -10 ---------- Run | Yrd Mat Min Machines Disabled . | . . . Max in Single Turn . | . . . Machines Repaired . | . . . Machines Dismantled . | . . . Machines Sabotaged . | . . . Overloaded Fab Kills . | . . . Hacking | -11 -10 -10 --------- Run | Yrd Mat Min Machines Accessed 5 | . 5 . Terminals 3 | . 3 . Fabricators . | . . . Repair Stations 1 | . 1 . Recycling Units 1 | . 1 . Scanalyzers . | . . . Garrison Access . | . . . Total Hacks 15 | . 15 . Successful 8 | . 8 . Failed 7 | . 7 . Catastrophic 1 | . 1 . Database Lockouts . | . . . Manual 9 | . 9 . Terminals 12 | . 12 . Fabricators . | . . . Repair Stations 2 | . 2 . Recycling Units 1 | . 1 . Scanalyzers . | . . . Garrison Access . | . . . Terminal Hacks 6 | . 6 . Part Schematic 1 | . 1 . Robot Analysis 1 | . 1 . Prototype ID Bank 1 | . 1 . Terminal Index 1 | . 1 . Alert Level 1 | . 1 . Locate Traps 1 | . 1 . Fabricator Hacks . | . . . Repair Station Hacks 1 | . 1 . Scan Component 1 | . 1 . Recycling Unit Hacks . | . . . Scanalyzer . | . . . Garrison Access Hacks . | . . . Unauthorized Hacks 1 | . 1 . Terminals . | . . . Fabricators . | . . . Repair Stations . | . . . Recycling Units 1 | . 1 . Tunnel 1 | . 1 . Scanalyzers . | . . . Garrison Access . | . . . Data Cores Recovered . | . . . Used . | . . . Hacking Detections 2 | . 2 . Full Trace Events . | . . . Feedback Events . | . . . Feedback Blocked . | . . . Robot Schematics Acquired . | . . . Robots Built . | . . . Authchips . | . . . Time . | . . . Total Robot Build Rating . | . . . Part Schematics Acquired 1 | . 1 . Parts Built . | . . . Authchips . | . . . Time . | . . . Total Part Build Rating . | . . . Part Studies Acquired . | . . . Parts Repaired . | . . . Time . | . . . Parts Recycled . | . . . Recycled Matter . | . . . Retrieved Matter . | . . . Retrieved Components . | . . . Parts Scanalyzed . | . . . Part Schematics Acquired . | . . . Parts Damaged . | . . . Bothacking | -11 -10 -10 ------------ Run | Yrd Mat Min Used RIF Installer . | . . . Robots Hacked . | . . . Non-combat . | . . . Combat . | . . . Robot Hacks Applied . | . . . Relay Couplers Released . | . . . Fabnet Peak Effective % . | . . . Robots Rewired . | . . . Allies Hacked . | . . . Hacks Repelled . | . . . Allies | -11 -10 -10 -------- Run | Yrd Mat Min Total Allies 4 | . . 4 Largest Group 4 | . . 4 Highest-Rated Group 71 | . . 71 Highest-Rated Ally 31 | . . 31 Total Orders . | . . . Ally Attacks 31 | . . 31 Total Damage 386 | . . 386 Kills 7 | . . 7 Allies Corrupted . | . . . Allies Melted 1 | . . 1 X0-1V1 Amusement Gains 101 | . 22 79 Average Entertainment 31 | . 30 31 Good Acts 1 | . 1 . Bad Acts 2 | . . 2 Intel | -11 -10 -10 ------- Run | Yrd Mat Min Active Infowar (turns) . | . . . Robot Analysis Total 1 | . 1 . Derelict Logs Recovered . | . . . Drone Launches . | . . . Drone Recoveries . | . . . Exploration | -11 -10 -10 ------------- Run | Yrd Mat Min Turns Passed 2979 | 120 2590 269 Spaces Moved 1366 | 50 1123 193 Core 5 | 5 . . Treads 776 | 45 731 . Legs . | . . . Wheels 585 | . 392 193 Hover . | . . . Flight . | . . . Fastest Speed 50 | 50 115 120 Average Speed 187 | 149 199 124 Slowest Speed 320 | 160 320 126 Overloaded Moves . | . . . Propulsion Burnouts . | . . . Robots Hopped . | . . . Potential Cave-ins . | . . . Cave-ins Triggered . | . . . Exploration Rate (%) 47 | 4 99 39 Regions Visited 2 Branch Regions 1 Pre-discovered Areas 1 | . 1 . Known Exits Taken . | . . . Unknown Exits Taken 2 | 1 1 . Scrap Searched . | . . . Spaces Dug 9 | . 9 . Terrain Destroyed 23 | . 9 14 Melee 8 | . 8 . Projectile 3 | . 1 2 AOE 12 | . . 12 Terrain Rammed . | . . . Walls Destroyed . | . . . Machines Disabled . | . . . Actions | -11 -10 -10 --------- Run | Yrd Mat Min Total 1614 | 72 1336 206 Wait 104 | . 104 . Move 1364 | 49 1122 193 Hop . | . . . Pick Up 21 | 6 14 1 Fast Attach 9 | 5 4 . Attach 3 | . 3 . Detach 4 | . 4 . Swap 9 | . 5 4 Drop 7 | . 7 . Fire 76 | 12 56 8 Melee 17 | . 17 . Ram . | . . . Kick . | . . . Crush . | . . . Escape Stasis . | . . . Rewire . | . . . Trap . | . . . Miscellaneous . | . . . Route ------- -11/Scrapyard -10/Materials (discovered 5 exits: [*Mat x3] / [*Min] / [*Sub]) -10/Mines History --------- Turn | Location | Event 7 | -11/Scrapyard | Discovered new exit (range 15) 121 | -11/Scrapyard | Entered Materials 311 | -10/Materials | Build established: Mutant 910 | -10/Materials | Discovered new exit (range 4) 1053 | -10/Materials | Discovered new exit (range 9) 1337 | -10/Materials | Discovered new exit (range 6) 1595 | -10/Materials | Discovered new exit (range 16) 2491 | -10/Materials | Discovered new exit (range 3) 2512 | -10/Materials | Made a sacrifice at D.C.S.S. Altar Unit 2512 | -10/Materials | Forcibly received Sfc. Transmogifier from X0-1V1 2513 | -10/Materials | Core integrity fell below 50% 2551 | -10/Materials | Propulsion slot count permanently improved by X0-1V1 (+1) 2711 | -10/Materials | Entered Mines 2737 | -10/Mines | A weapon hastily lodged in a ceiling crevice suddenly fell to the ground 2738 | -10/Mines | Met a Derelict bent on vengeance 2764 | -10/Mines | Assisted by bots powering up and referring to "LRC-V3" 2847 | -10/Mines | Met a Derelict testing a Signal Generator 2927 | -10/Mines | Assembled infested the area 2980 | -10/Mines | Core integrity fell below 20% 2980 | -10/Mines | Destroyed by D-53 Grenadier with Mini Grenade Launcher Last Messages --------------- 02948_ as-19656 destroyed. 02949_ R-06 Scavenger knocked back. 02949_ Destroyed Com. Wheel. 02949_ R-06 Scavenger destroyed. 02950_ K-01 Serf collects debris. 02953_ Acquired 5 matter. 02957_ K-01 Serf collects debris. 02959_ X0-1V1 blurs the world around you (-3 sight range). 02962_ SRJJZF,5SF0G2ZQRUOBKBYXQ4=DMO#H#1L7AZ 02968_ M-13 Machinist repairs U-05 Engineer Wheel. 02974_ C-45 Heavy ARC bursts open, deploying its payload. 02974_ D-53 Grenadier unfolds itself. 02974_ U-05 Engineer destroyed. 02974_ K-01 Serf collects debris. 02975_ K-01 Serf destroyed. 02977_ K-01 Serf collects debris. 02979_ U-05 Engineer builds a Wall. 02979_ Com. Wheel destroyed. 02980_ System corrupted: Matter fused (-6). 02980_ X0-1V1 laughs nastily! Map ----- +----------------------------------------------------+ | ?????????????????????????????????????????????##### | | ????????????????????????????????????????????## | | ????????????????????????????????????????????# | | ????????????????????????????????????????????# | | ????????????????????????????????????????????## | | ?????????????????????????????????????????????#### | | ????????????????????????????????????????????????## | | ?????????????????????????????????????????????????# | | ????????????????????????????????????????????????## | | ???????????????????????????????????????????????## | | ???????????????????????????????????????????##?## | | ??????????????????????????????????????????##### | | ????????????????????????????????????????### | | ???????????????????????? ##????????????## | | ???????????????????? ## ??????????## ## | | ?????????????????? ???##########%[ ##? | | ??????????????????? ???#% ![%!% %= ##? | | ???????????????????# ????# % ==* #? | | ???????????????????# ????# #####*## #? | | ????????????????????# k###??# #??##%### ##? | | ????????????????????# #??# #???#%#?####?? | | ????????????????????# #### #???#%#??????? | | ????????????????????# ### ##??#!#??????? | | ?????????????????#### * u #??# #??????? | | ?????????????????#;; #??# #??????? | | ?????????????# d @ ##??# #??????? | | ????????????? %d ##???# #??????# | | ???????????????### ######????# #?????## | | ?????????????????## r ##?????????# #?????# | | ??????????????????#### # ##??????????#%#?????# | | ?????????????????????# #?###?????????### #?????## | | ?????????????????????# ??????????????# #??????# | | ?????????????????????# ??????????????# ###??????# | | ?????????????????????# ??????????????# ?????????# | | ?????????????????????##???????????????#??????????# | | ?????????????????????????????????????? ######## | | ????????????????????????????????????# | | ???????????????????????????????????? | | ???????????????????????????????????? ######## | | ?????????????????????????????????????????????????? | | ?????????????????????????????????????????????????? | | ?????????????????????????????????????????????????? | | ?????????????????????????????????????????????????? | | ?????????????????????????????????????????????????? | | ?????????????????????????????????????????????????? | | ?????????????????????????????????????????????????? | | ?????????????????????????????????????????????????? | | ?????????????????????????????????????????????????? | | ?????????????????????????????????????????????????? | | ?????????????????????????????????????????????????? | +----------------------------------------------------+ Best States ------------- Heat Dissipation 39 Energy Generation 12 Energy Capacity 265 Matter Stores 300 Matter Capacity 300 Sight Range 16 Terrain Scan Density 10 Evasion (%) 40 Recoil Reduction 2 Item Schematics ----------------- Huge Storage Unit | -10/Materials | Hacked Robot Schematics ------------------ None Fabricated ------------ Nothing Repaired ---------- Nothing Studied --------- None Alien Tech Used ----------------- None Achievements -------------- None Challenges ------------ None Game ------ Seed PhasingWeightRailgun Manual? 0 Play Time 00:13:51 Cumulative 354.7 hours Start 2026.08.18 @ 14:44:00 End 2026.08.18 @ 14:58:22 Sessions 1 Manual Loads 0 Difficulty Rogue Special Mode None Game No. 139 Rogue 139 Adventurer 0 Explorer 0 Win Type - Total 36 Types 11/5/7/2/1/1/3/2/2/2 Lore% 83 Gallery% 79 Achievement% 74 Wizard Run 0 Options --------- Layout 0 ASCII 0 Keyboard 1 Movement Vi Keybinds 0 Fullscreen 2 Font 24/Smallcaps Map View 76x50 Zoom Use 0% Tactical HUD 1 Map Filters NONE Filters NONE Steam 1 RUN: e3d3c31c-639a-4417-965f-90d2f13c5900